{"text_format":"1","workbook":"xlsx","n_sheets":4,"sheets":["CETVEL1","CETVEL2","CETVEL3","TABLO1"],"not_rendered":{"charts":0,"images":0,"macros":1,"external_links":0,"defined_names":4,"comments":1,"pivot_tables":0},"unopened":[],"bounds":{"document_bytes":16777216,"sheet_cells":100000,"rows_first":2000,"rows_last":500,"rows_between":2000,"halvings":0,"cell_chars":16384,"cell_head_chars":4096},"cells_cut":0,"cells_raw":0,"read":"whole","date_system":"1900"}

{"sheet":"CETVEL1","index":0,"n_rows":17,"n_cols":7,"rows_kept":17,"cut":false,"hidden":false,"merged":[[0,0,0,6],[1,0,1,6],[2,0,2,6],[3,0,3,1],[4,0,4,5],[3,2,3,3],[48,1,48,2],[46,1,46,2],[39,1,39,2],[40,1,40,2],[41,1,41,2],[45,1,45,2],[47,1,47,2],[44,1,44,2],[42,1,42,2],[43,1,43,2]]}
["YASAL KARŞILIK CETVELİ"]
["41/2001 SAYILI  KKTC  MERKEZ BANKASI YASASI'NIN"]
["23'ÜNCÜ MADDE (2)'NCİ, (3)'ÜNCÜ VE (4)'ÜNCÜ FIKRALARINA İSTİNADEN HAZIRLANMIŞTIR"]
["Banka Adı:",null,null,null,null,"Hazırlama Tarihi:"]
["AİT OLDUĞU AY/YIL  :"]
[null,null,"( A )","( B )","( C )","( D )","( E )"]
[null,"PARA CİNSİ","  YASAL KARŞILIĞA TABİ YÜKÜMLÜLÜK","TESİS EDİLMESİ GEREKEN YASAL KARŞILIK","MERKEZ BANKASI'NDA MEVCUT YASAL KARŞILIK","YATIRILACAK","ÇEKİLECEK"]
[1," TÜRK LİRASI ₺",{"$f":"CETVEL2!D24","v":0},{"$f":"CETVEL2!E27","v":0},null,{"$f":"IF(D8>E8,D8-E8,0)","v":0},{"$f":"IF(E8>D8,E8-D8,0)","v":0}]
[2,"EURO  €",{"$f":"+CETVEL2!F24","v":0},{"$f":"+CETVEL2!G27","v":0},null,{"$f":"IF(D9>E9,D9-E9,0)","v":0},{"$f":"IF(E9>D9,E9-D9,0)","v":0}]
[3,"STERLİN  ₤",{"$f":"+CETVEL2!H24","v":0},{"$f":"+CETVEL2!I27","v":0},null,{"$f":"IF(D10>E10,D10-E10,0)","v":0},{"$f":"IF(E10>D10,E10-D10,0)","v":0}]
[4," ABD DOLARI $",{"$f":"+CETVEL2!J24","v":0},{"$f":"+CETVEL2!K27","v":0},null,{"$f":"IF(D11>E11,D11-E11,0)","v":0},{"$f":"IF(E11>D11,E11-D11,0)","v":0}]
[5,"\"KIYMETLİ MADEN\""]
[]
[null,{"$f":"IF(CETVEL2!$D$29=10,\"Rezerv Opsiyon Mekanizması Kullanılmıştır.\",\"\")","v":""}]
[]
[null,null,null,null,"ADI-SOYADI","ADI-SOYADI"]
[null,null,null,null,"İMZA","İMZA"]

{"sheet":"CETVEL2","index":1,"n_rows":72,"n_cols":11,"rows_kept":72,"cut":false,"hidden":false,"merged":[[33,5,33,7],[18,0,22,0],[24,1,24,2],[25,1,25,2],[34,1,45,1],[28,1,28,2],[29,1,29,2],[30,3,30,6],[27,1,27,2],[33,2,33,4],[0,0,0,10],[1,0,1,10],[2,0,2,10],[26,1,26,2],[3,0,3,1],[3,2,3,5],[23,1,23,2]]}
["YASAL KARŞILIĞA TABİ YÜKÜMLÜLÜK CETVELİ"]
["41/2001 SAYILI  KKTC  MERKEZ BANKASI YASASI'NIN"]
["23'ÜNCÜ MADDE (2)'NCİ, (3)'ÜNCÜ VE (4)'ÜNCÜ FIKRALARINA İSTİNADEN HAZIRLANMIŞTIR"]
["Banka Adı:",null,null,null,null,null,null,null,null,"Hazırlama Tarihi"]
[null,"YASAL KARŞILIK ORANLARI","(*)","(*)","(*)","(*)","(A+B)  (*)","A","B","AİT OLDUĞU AY/YIL:"]
["SIRA\n NO","YASAL KARŞILIĞA TABİ  YÜKÜMLÜLÜK CETVELİ","TÜRK LİRASI\n₺","EURO  \n €","STERLİN\n ₤","\"KIYMETLİ\n MADEN\"","∑ DOLAR\n  $","DOLAR\n  $","\"DİĞ.DÖVİZ\" $. KARŞILIĞI\n","YP'NİN \n₺ KARŞILIĞI","TOPLAM\n₺"]
[1,"Toplam Pasif",null,null,null,null,{"$f":"H7+I7","v":0},null,null,{"$f":"(($D7*$G$28)+($E7*$I$28)+($G7*$K$28)+H46)","v":0},{"$f":"+C7+J7","v":0}]
[2,"Mevduat  ( Toplam )",null,null,null,null,{"$f":"H8+I8","v":0},null,null,{"$f":"(($D8*$G$28)+($E8*$I$28)+($G8*$K$28))","v":0},{"$f":"+C8+J8","v":0}]
[3,"Yurtiçi Bankalar Mevduatı ( Detayı Tablo 1'dedir.) ",null,null,null,null,{"$f":"H9+I9","v":0},null,null,0,0]
[4,"Yasal Karşılığa Tabi Mevduat (2-3)",{"$f":"C8-C9","v":0},0,0,0,0,0,0,0,0]
[5,"Mevduat Hariç Pasif Toplamı (1-2)",{"$f":"C7-C8","v":0},0,0,0,0,0,0,0,0]
[6,"Yurtiçi B.Mev. Haricindeki İndirilecek Kalemler Toplamı",null,null,null,null,{"$f":"H12+I12","v":0},null,null,0,0]
[7,"İndirilecek Kalemler Toplamı  ( 3+6) ",{"$f":"C9+C12","v":0},0,0,0,0,0,0,0,0]
[8,"Yasal Karşılığa Tabi Toplam  Pasif (1-7)",{"$f":"C7-C13","v":0},0,0,0,0,0,0,0,0]
[9,"Tesis Edilecek Yasal Karşılık  Tutarı",{"$f":"+E24","v":0},{"$f":"G24","v":0},{"$f":"I24","v":0},{"$f":"F14*C18","v":0},{"$f":"K24","v":0},null,null,0,{"$f":"+C15+J15","v":0}]
[]
[10,"TP ve YP, Yasal Karşılığa Tabi Toplam Pasif'in Vadelere Göre Dağılımı ve Yasal Karşılık Oranları","Yasal Karşılık\nOranı  (*)","Yasal Karşılığa Tabi Toplam  Pasif (8)","Tesis Edilecek Yasal Karşılık  Tutarı (9)","Yasal Karşılığa Tabi Toplam  Pasif (8)","Tesis Edilecek Yasal Karşılık  Tutarı (9)","Yasal Karşılığa Tabi Toplam  Pasif (8)","Tesis Edilecek Yasal Karşılık  Tutarı (9)","Yasal Karşılığa Tabi Toplam  Pasif (8)","Tesis Edilecek Yasal Karşılık  Tutarı (9)"]
["a)","\"Kıymetli Maden\" Yasal Karşılık Oranı",0,"₺","₺","€","€","£","£","Σ $.","Σ $"]
["b)","1) Üç aya kadar vadeli mevduatlar (3 ay dâhil)",0.08,null,{"$f":"$C19*D19","v":0},null,{"$f":"$C19*F19","v":0},null,{"$f":"$C19*H19","v":0},null,{"$f":"$C19*J19","v":0}]
[null,"2) Üç aydan uzun altı aya kadar vadeli mevduatlar (6 ay dâhil)",7.0000000000000007E-2,null,{"$f":"$C20*D20","v":0},null,0,null,{"$f":"$C20*H20","v":0},null,{"$f":"$C20*J20","v":0}]
[null,"3) Altı aydan uzun 1 yıla kadar vadeli mevduatlar (1 yıl dâhil)",0.06,null,0,null,0,null,{"$f":"$C21*H21","v":0},null,{"$f":"$C21*J21","v":0}]
[null,"4) Bir yıldan uzun vadeli mevduatlar",0.05,null,0,null,0,null,{"$f":"$C22*H22","v":0},null,{"$f":"$C22*J22","v":0}]
[null,"5) Mevduat hariç TP ve YP diğer yükümlülükler",0.08,null,0,null,0,null,{"$f":"$C23*H23","v":0},null,{"$f":"$C23*J23","v":0}]
[11,"Toplam (Yasal Karşılığa Tabi Pasif ve Tesis Edilecek Tutar) ",null,{"$f":"SUM(D19:D23)","v":0},{"$f":"SUM(E19:E23)","v":0},{"$f":"SUM(F19:F23)","v":0},0,0,0,0,0]
[12,"14.09.2020 Tarih ve 1131 Sayılı Yasal Karşılık Kararının 3. A) İ. Maddesine İstinaden İndirilecek Tutar;",null,null,{"$f":"IF(E24=0,0,E24-D25)","v":0}]
[13,"14.09.2020 Tarih ve 1131 Sayılı Yasal Karşılık Kararının 3. A) İİ. Maddesine İstinaden İndirilecek Tutar;",null,null,{"$f":"IF(E24=0,0,E25-D26)","v":0}]
[14,"Rezerv Opsiyon Mekanizması (ROM) Sonrası Tesis Edilecek Tutarlar",null,"₺",{"$f":"+E26-E29","v":0},"€",{"$f":"+G24+G29","v":0},"£",{"$f":"+I24+I29","v":0},"Σ $.",{"$f":"+K24+K29","v":0}]
[15,"Rezerv Opsiyon Mekanizması (ROM) Kullanılacak mı?",null,null,"Kurlar","€",null," ₤",null,"   $"]
[16,"Rezerv Opsiyon Mekanizması (ROM) Oranı ve Tutarı",null,{"$f":"IF(B72=TRUE,10,0)","v":0},{"$f":"E26*D29/100","v":0},"€ Tutarı",{"$f":"IF($E$29=0,0,($E$29/G28)*G30)","v":0},"£ Tutarı",{"$f":"IF($E$29=0,0,($E$29/I28)*I30)","v":0},"$ Tutarı",{"$f":"IF($E$29=0,0,($E$29/K28)*K30)","v":0}]
[17,"Yabancı Paraların Toplam ₺ Karşılığı ve Oranları",null,{"$f":"IF(D29=0,0,G30+I30+K30)","v":0},{"$f":"(G29*G28)+(I29*I28)+(K29*K28)","v":0},"€ Oranı",null,"£ Oranı",null,"$ Oranı"]
[null,null,null,{"$f":"IF(OR(B72=FALSE,D30=1,D30=0),\"\",\"↑ Hatalı ORAN girişi, toplam %100 olması gerekir\")","v":""}]
[null,null,null,null,null,null,null,null,null,"ADI-SOYADI","ADI-SOYADI"]
[null,null,null,null,null,null,null,null,null,"İMZA","İMZA"]
[null,"CETVEL 2: EK ","\"Diğer Döviz\"  Yükümlülüklerin Miktarları ve $ Karşılığı ",null,null,"\"Kıymetli Maden\" Yükümlülüklerin Gram Cinsinden Miktarları ve TL Karşılığı"]
[null,"Not: Nezdinizde bulunan, ancak sağ taraftaki tabloda bulunmayan diğer döviz cinsleri için, burada yazılan döviz cinslerinin yerine tarafınızdan  giriş yapılabilir.","\"DİĞER DÖVİZ\" CİNSİ","MİKTARI","DOLAR KARŞILIĞI","\"KIYMETLİ MADEN\" CİNSİ","MİKTARI (GR)","TL KARŞILIĞI"]
[null,null,"AUD",null,null,"XAU"]
[null,null,"DKK",null,null,"XAG"]
[null,null,"CHF",null,null,"XPT"]
[null,null,"SEK"]
[null,null,"CAD"]
[null,null,"KWD"]
[null,null,"NOK"]
[null,null,"SAR"]
[null,null,"JPY"]
[null,null,"XAU"]
[null,null,"Toplam",{"$f":"SUM(D36:D45)","v":0},{"$f":"SUM(E36:E45)","v":0},"Toplam",{"$f":"SUM(G36:G45)","v":0},{"$f":"SUM(H36:H45)","v":0}]
[]
[]
[]
[]
[]
[]
[]
[]
[]
[]
[]
[]
[]
[]
[]
[]
[]
[]
[]
[]
[]
[]
[]
[]
[]
[null,false]

{"sheet":"CETVEL3","index":2,"n_rows":39,"n_cols":4,"rows_kept":39,"cut":false,"hidden":false,"merged":[[0,0,0,3],[1,0,1,3],[2,0,2,3],[3,0,3,1],[4,0,4,2],[3,2,3,3]]}
["İNDİRİLECEK KALEMLER CETVELİ"]
["41/2001 SAYILI  KKTC  MERKEZ BANKASI YASASI'NIN"]
["23'ÜNCÜ MADDE (2)'NCİ, (3)'ÜNCÜ VE (4)'ÜNCÜ FIKRALARINA İSTİNADEN HAZIRLANMIŞTIR"]
["Banka Adı:"]
["AİT OLDUĞU AY/YIL  :"]
["SIRA NO","İNDİRİLECEK KALEMLER","TP","YP"]
["I","ÖZKAYNAKLAR",{"$f":"SUM(C8:C13)","v":0},{"$f":"SUM(D8:D13)","v":0}]
[1,"Ödenmiş Sermaye (Sermaye-Sermaye Taahhütleri)"]
[2,"Yedek Akçeler"]
[3,"Sabit Kıymet Yeniden Değerleme Fonu"]
[4,"Menkul Değerler Değer Artış Fonu"]
[5,"Dönem Karı (Zararı)"]
[6,"Geçmiş Yıllar Karı (Zararı)"]
["II","SERMAYE BENZERİ KREDİLER\n(Özkaynak Hesabında Dikkate Alınan Kısım)"]
["III","KARŞILIKLAR"]
["IV","MERKEZ BANKASI'NA YÜKÜMLÜLÜKLER",{"$f":"SUM(C17:C19)","v":0},{"$f":"SUM(D17:D19)","v":0}]
[1,"Merkez Bankası’ndan Alınan Mevduat"]
[2,"Merkez Bankası Kredileri"]
[3,"Merkez Bankası, Bankalararası Piyasalara Borçlar"]
["V","KREDİ VE DİĞER ALACAKLAR DEĞERLEME FONU"]
["VI","ÖZEL GÖREV HESAPLARI"]
["VII","ERTELENMİŞ VERGİLER"]
["VIII","BANKAMIZA TAHSİS EDİLEN FONLAR VE FONLARDAN KULLANDIRILAN KREDİ KARŞILIKLARI"]
["IX","YURT İÇİ BANKALARA YÜKÜMLÜLÜKLER",{"$f":"SUM(C25:C27)","v":0},{"$f":"SUM(D25:D27)","v":0}]
[1,"Yurt İçi Bankalar Mevduatı ve Kıymetli Maden Depo Hs.\n(KKTC’de faaliyet gösteren bir bankanın, KKTC’de faaliyet gösteren diğer bir bankanın/ yurt dışı şubesinden sağlayacağı mevduatlar ile Uluslararası Bankacılık Birimlerinden sağlanan mevduatlar  yurt içi banka mevduatı sayılmaz.)"]
[2,"Yurt İçi Bankalardan Kullanılan Krediler"]
[3,"Alınan Nakdi Teminatlar\n(Bu hesaplardaki tutarlardan yurt içi bankalara ait olanlar kaydedilecektir.)"]
["X","Faiz ve Gider Reeskontları"]
["XI","Kazanılmamış Gelirler "]
[null,"TOPLAM",{"$f":"+C29+C28+C24+C23+C22+C21+C20+C16+C15+C14+C7","v":0},{"$f":"+D29+D28+D24+D23+D22+D21+D20+D16+D15+D14+D7","v":0}]
["Dönüşüm kurlarını buraya not ediniz."]
["USD        :"]
["EURO     :"]
["STG.       :"]
["Ve Diğerleri…"]
[]
[]
[null,null,"ADI-SOYADI","ADI-SOYADI"]
[null,null,"İMZA","İMZA"]

{"sheet":"TABLO1","index":3,"n_rows":31,"n_cols":9,"rows_kept":31,"cut":false,"hidden":false,"merged":[[0,2,0,4],[0,0,0,1],[0,5,0,7]]}
["Banka Adı:",null,null,null,null,"AİT OLDUĞU AY/YIL  :"]
["Ek Tablo:","Yurt İçi Bankalar Mevduat Detayı"]
["Sıra No","Banka Adı","TL","EURO","STERLİN","\"KIYMETLİ MADEN\"","TOPLAM DOLAR (a+b)","DOLAR","DİĞER DÖVİZ DOLAR KARŞILIĞI"]
[1,"KKTC Kalkınma Bankası",null,null,null,null,{"$f":"+H4+I4","v":0}]
[10,"T. C. Ziraat Bankası A.Ş.",null,null,null,null,0]
[12,"T. Halk Bankası A.Ş.",null,null,null,null,0]
[32,"T. Ekonomi Bankası A.Ş.",null,null,null,null,0]
[62,"T. Garanti Bankası A.Ş.",null,null,null,null,0]
[64,"T. İş Bankası A.Ş.",null,null,null,null,0]
[110,"K. Vakıflar Bankası Ltd.",null,null,null,null,0]
[120,"K. T. Koop. M. Bankası Ltd.",null,null,null,null,0]
[121,"Türk Bankası Ltd.",null,null,null,null,0]
[123,"Limasol T. Koop. Bankası Ltd.",null,null,null,null,0]
[126,"Asbank Ltd.",null,null,null,null,0]
[128,"K. İktisat Bankası Ltd.",null,null,null,null,0]
[131,"Nova Bank Ltd.",null,null,null,null,0]
[136,"Creditwest Bank Ltd.",null,null,null,null,0]
[139,"Yakındoğu Bank Ltd.",null,null,null,null,0]
[141,"Şekerbank (Kıbrıs) Ltd.",null,null,null,null,0]
[145,"Akfinans Bank Ltd.",null,null,null,null,0]
[146,"K. Kapital Bank Ltd.",null,null,null,null,0]
[147,"Universal Bank Ltd.",null,null,null,null,0]
[149,"Viyabank Ltd.",null,null,null,null,0]
[152,"Albank Ltd.",null,null,null,null,0]
[203,"K. Faisal İslam Bankası Ltd.",null,null,null,null,0]
[null,"TOPLAM",{"$f":"SUM(C4:C25)","v":0},0,0,null,0,0,0]
["Not:","İlgili bankanın karşısına mevduat tutarını cinsine göre giriş yapabilirsiniz "]
[]
[]
[null,null,null,null,null,null,null,"ADI-SOYADI","ADI-SOYADI"]
[null,null,null,null,null,null,null,"İMZA","İMZA"]